Cogmind - Beta 14 @@@ ROGUE MODE // 2024.08.29 @ 13:28:52 Player: Lunace Result: Destroyed by AG-83068 with Assembled Focal Cannon Performance ------------- Evolutions (3) 1500 Regions Visited (10) 2000 Robots Destroyed (64) 320 Value Destroyed (1937) 1937 Prototype IDs (18) 360 Alien Tech Used (0) 0 Bonus (2431) 2431 TOTAL SCORE: 8548 Bonus ------- High Alert Combat Kills 33 Follower Combat Kills 259 Met Imprinter 300 Destroyed Z-Imprinter 1000 Triggered Deep Caves Wall 500 Exposed GOLEM Chamber 500 Friendly Fire -161 Cogmind --------- Core Integrity 0/700 Matter 135/300 Energy 29/100 System Corruption 0% Temperature Cool (6) Movement Core (50) Location -7/Deep Caves Parts ------- > --- POWER (1) -------- (None) > --- PROPULSION (4) --- (None) > --- UTILITY (4) ------ (None) > --- WEAPON (4) ------- Ripper > --- INVENTORY (5) ---- Zionite Light DM Reactor Kinecellerator Phasing AFG Zionite Laser-S Peak State ------------ > --- POWER ------------ Zionite Light DM Reactor > --- PROPULSION ------- Advanced Treads Advanced Treads Advanced Treads Advanced Treads > --- UTILITY ---------- Experimental Heat Sink Large Storage Unit Zionite Weapon Casing Zionite Weapon Casing > --- WEAPON ----------- Zionite Laser-S Zionite Phaser-S Advanced Assault Cannon Advanced Assault Cannon > --- INVENTORY -------- Zionite Light DM Reactor Experimental Heat Sink Zionite Biocell Large Matter Pod Experimental Melee Analysis Suite Kinecellerator Phasing AFG Heavy Assault Rifle Heavy Assault Rifle Advanced Assault Cannon Advanced Assault Cannon Heavy Rocket Launcher Ripper [Rating: 67] Favorites ----------- Power Improved Ion Engine Engine Improved Ion Engine Power Core Neutrino Core Reactor Zionite Light DM Reactor Propulsion Advanced Treads Treads Advanced Treads Hover Unit Zionite Glidesys I Utility Large Storage Unit Device Shield Generator Storage Large Storage Unit Processor Improved Targeting Computer Hackware Experimental Hacking Suite Protection Heavy Armor Plating Weapon Advanced Assault Cannon Energy Gun EM Pulse Gun Ballistic Gun Heavy Assault Rifle Ballistic Cannon Advanced Assault Cannon Launcher Missile Launcher Slashing Weapon Ripper Build | -11 -10 -10 -10 -9 -8 -7 -7 -7 -7 -7 ------- Run | Yrd Mat Min Exi Min Mat Fac Low Low Zio Dee Slots Evolved 6 | . . . . . 4 2 . . . . Power . | . . . . . . . . . . . Propulsion 2 | . . . . . 1 1 . . . . Utility 2 | . . . . . 1 1 . . . . Weapon 2 | . . . . . 2 . . . . . Parts Attached 77 | 9 6 . . 1 14 12 2 4 7 22 Power 7 | 1 1 . . . 1 . 1 1 . 2 Engine 4 | 1 1 . . . 1 . . 1 . . Core 1 | . . . . . . . 1 . . . Reactor 2 | . . . . . . . . . . 2 Propulsion 14 | 2 . . . . 5 4 . 1 . 2 Treads 13 | 2 . . . . 5 4 . 1 . 1 Leg . | . . . . . . . . . . . Wheel . | . . . . . . . . . . . Hover 1 | . . . . . . . . . . 1 Flight . | . . . . . . . . . . . Utility 31 | 3 2 . . . 3 2 . 2 7 12 Device 14 | 2 . . . . 1 2 . 2 2 5 Storage 4 | 1 1 . . . . . . . . 2 Processor 6 | . 1 . . . 1 . . . 4 . Hackware 1 | . . . . . . . . . 1 . Protection 6 | . . . . . 1 . . . . 5 Artifact . | . . . . . . . . . . . Weapon 25 | 3 3 . . 1 5 6 1 . . 6 Energy Gun 5 | 2 . . . . . . . . . 3 Energy Cannon . | . . . . . . . . . . . Ballistic Gun 10 | 1 3 . . . 4 2 . . . . Ballistic Cannon 5 | . . . . . . 4 . . . 1 Launcher 4 | . . . . 1 1 . 1 . . 1 Special Weapon . | . . . . . . . . . . . Impact Weapon . | . . . . . . . . . . . Slashing Weapon 1 | . . . . . . . . . . 1 Piercing Weapon . | . . . . . . . . . . . Special Melee Weapon . | . . . . . . . . . . . Unidentified Prototypes 14 | . . . . . . . . . 5 9 Parts Lost 14 | . . . . . 1 . . 2 . 11 Power 2 | . . . . . . . . 1 . 1 Propulsion 5 | . . . . . 1 . . . . 4 Utility 4 | . . . . . . . . 1 . 3 Weapon 3 | . . . . . . . . . . 3 Highest Loss Streak 10 | . . . . . 1 . . 2 . 10 To Critical Strikes . | . . . . . . . . . . . Average Slot Usage (%) 94 | . 99 100 100 100 91 91 92 89 98 92 Engine 7 | . 14 14 14 14 9 7 3 2 7 1 Treads 28 | . 28 28 28 28 27 30 30 29 30 27 Device 5 | . 3 . . . . 6 7 8 8 8 Storage 9 | . 14 14 14 14 9 7 7 7 7 6 Processor 4 | . 10 14 14 14 4 . . . 5 . Hackware 1 | . . . . . . . . . 5 1 Protection 4 | . . . . . 6 7 7 4 . 9 Energy Gun 1 | . 6 . . . . . . . . 4 Ballistic Gun 12 | . 20 28 28 24 34 24 . . . . Ballistic Cannon 12 | . . . . . . 4 26 23 23 18 Launcher 3 | . . . . 3 1 . 3 7 7 4 Peak Build Rating 67 | 9 12 11 12 12 26 41 45 47 60 67 Average Rating 33 | 7 9 11 11 12 22 36 42 42 49 57 On Entrance 23 | . 7 11 11 12 12 26 41 45 40 52 Naked Turns 19 | . . . . . . . . . . 19 Heaviest Build 77 | 15 31 31 31 31 58 68 75 77 59 59 Greatest Support 88 | 40 40 40 40 40 60 88 88 88 88 88 Greatest Overweight (x) . | . . . . . . . . . . . Average Overweight (x) . | . . . . . . . . . . . Largest Inventory Capacity 15 | 8 15 15 15 15 15 15 15 15 15 15 Average Capacity 14 | 7 12 15 15 15 15 15 15 15 15 14 Most Carried 15 | 3 13 11 13 15 15 14 12 13 15 15 Average Carried 11 | 2 7 11 11 14 12 10 11 11 12 12 Final Capacity 15 | 8 15 15 15 15 15 15 15 15 15 5 Final Carried 15 | 2 11 11 13 15 15 11 12 10 14 4 Class Distribution -------------------- 31% | Tank 28% | Mutant 22% | Scavenger-Tank 17% | Gunner Dominant Class ---------------- Mutant | -10/Materials Mutant | -10/Mines Mutant | -10/Exiles Mutant | -9/Mines Scavenger-Tank | -8/Materials Tank | -7/Factory Tank | -7/Lower Caves Tank | -7/Lower Caves Gunner | -7/Zion Scavenger-Tank | -7/Deep Caves Resources | -11 -10 -10 -10 -9 -8 -7 -7 -7 -7 -7 ----------- Run | Yrd Mat Min Exi Min Mat Fac Low Low Zio Dee Matter Collected 2638 | 280 206 . 20 7 551 . 507 412 173 482 Remotely . | . . . . . . . . . . . Salvage Created 2295 | 136 527 . . 35 744 . 132 201 . 520 Parts 126 | 13 39 . . 7 43 . 6 5 . 13 Haulers Intercepted 2 | . 2 . . . . . . . . . Recyclers Shooed . | . . . . . . . . . . . Parts Field Recycled . | . . . . . . . . . . . Retrieved Matter . | . . . . . . . . . . . Parts Self-Destructed 9 | . . . . . . . 6 3 . . Prevented . | . . . . . . . . . . . Kills | -11 -10 -10 -10 -9 -8 -7 -7 -7 -7 -7 ------- Run | Yrd Mat Min Exi Min Mat Fac Low Low Zio Dee Combat Hostiles Destroyed 91 | . 11 . . 4 14 . 7 10 . 45 Melee 1 | . . . . . . . . . . 1 Guns 23 | . 11 . . . 11 . . . . 1 Cannons 12 | . . . . . . . 4 3 . 5 AOE 55 | . . . . 4 3 . 3 7 . 38 Classes Destroyed 14 | 1 5 . . . 3 . 1 1 . 3 Worker 2 | . 1 . . . 1 . . . . . Tunneler 6 | 6 . . . . . . . . . . Hauler 2 | . 2 . . . . . . . . . Recycler 1 | . . . . . 1 . . . . . Watcher 3 | . 2 . . . 1 . . . . . Swarmer 16 | . 3 . . 4 3 . 3 3 . . Grunt 20 | . 8 . . . 7 . 3 2 . . Brawler 3 | . . . . . . . 1 2 . . Duelist 1 | . . . . . . . . 1 . . Sentry 5 | . . . . . 3 . . 2 . . Hunter 1 | . . . . . 1 . . . . . Z-Light 3 | . . . . . . . . . . 3 Assembler 1 | . . . . . . . . . . 1 Assembled 42 | . . . . . . . . . . 42 Best Kill Streak 40 | 2 3 . . 4 6 . 3 7 . 40 Combat Bots Only 39 | . 3 . . 4 6 . 3 7 . 39 Max Kills in Single Turn 14 | 1 2 . . 2 4 . 2 2 . 14 Gunslinging 1 | . 1 . . . . . . . . . Exploded 14 | . . . . 2 3 . 2 2 . 14 Melee 1 | . . . . . . . . . . 1 Uniques/NPCs Destroyed 1 | . . . . . . . . . . 1 Z-Imprinter (-7/Deep Caves) Combat | -11 -10 -10 -10 -9 -8 -7 -7 -7 -7 -7 -------- Run | Yrd Mat Min Exi Min Mat Fac Low Low Zio Dee Hostile Shots Fired 337 | . 28 . . 2 69 . 20 89 . 129 Missed 100 | . 7 . . 2 19 . 4 24 . 44 Damage Taken 3861 | 36 203 . . . 644 . 190 527 . 2261 Core 773 | 18 38 . . . 17 . 18 16 . 666 Absorbed by Shields 283 | . . . . . . . 74 148 . 61 Redirected to Shielding 431 | . . . . . . . . . . 431 Regen/Repaired (Parts) 229 | . . . . . . . . . 229 . Core Remaining (%) 88 | 92 . . . 77 96 . . . . . Volleys Fired 139 | 11 28 . . 2 34 . 13 20 . 31 Largest 4 | 2 2 . . 1 4 . 4 4 . 4 Hottest 216 | 80 80 . . 30 97 . 192 180 . 216 Shots Fired 374 | 22 56 . . 2 133 . 33 47 . 81 Gun 224 | 22 56 . . . 132 . . . . 14 Cannon 121 | . . . . . . . 31 36 . 54 Launcher 29 | . . . . 2 1 . 2 11 . 13 Special . | . . . . . . . . . . . Kinetic 305 | . 52 . . . 132 . 31 36 . 54 Thermal 1 | . . . . . . . . . . 1 Explosive 29 | . . . . 2 1 . 2 11 . 13 Electromagnetic 26 | 22 4 . . . . . . . . . Phasic 13 | . . . . . . . . . . 13 Robot Hit Streak 16 | 4 9 . . 3 14 . 8 16 . 5 Robot Miss Streak 6 | 3 2 . . . 4 . 3 3 . 6 Penetration Max . | . . . . . . . . . . . Secondary Targets 4 | . 2 . . . 2 . . . . . Max Gunslinging Chain 1 | . 1 . . . 1 . . . . . Shots Hit Robots 212 | 10 36 . . 1 84 . 21 26 . 34 Core Hits 196 | 6 19 . . 4 33 . 11 23 . 100 Critical Kills . | . . . . . . . . . . . Critical Parts Destroyed 1 | . . . . . 1 . . . . . Critical Strikes 7 | . . . . . 1 . 1 1 . 4 Destroy 1 | . . . . . 1 . . . . . Blast 5 | . . . . . . . 1 1 . 3 Intensify 1 | . . . . . . . . . . 1 Melee Attacks 2 | . . . . . . . . . . 2 Impact . | . . . . . . . . . . . Slashing 2 | . . . . . . . . . . 2 Piercing . | . . . . . . . . . . . Sneak Attacks . | . . . . . . . . . . . Combat Hostiles . | . . . . . . . . . . . Follow-up Attacks . | . . . . . . . . . . . Damage Inflicted 9212 | 165 582 . . 182 1509 . 738 1235 . 4801 Guns 2285 | 133 582 . . . 1343 . . . . 227 Cannons 1797 | . . . . . . . 518 506 . 773 Explosions 5075 | 32 . . . 182 166 . 220 729 . 3746 Melee 55 | . . . . . . . . . . 55 Ramming . | . . . . . . . . . . . Kinetic 3710 | . 570 . . . 1343 . 518 506 . 773 Thermal 61 | 32 . . . . . . . . . 29 Explosive 5043 | . . . . 182 166 . 220 729 . 3746 Electromagnetic 145 | 133 12 . . . . . . . . . Impact . | . . . . . . . . . . . Slashing 55 | . . . . . . . . . . 55 Piercing . | . . . . . . . . . . . Phasic 198 | . . . . . . . . . . 198 Highest Corruption 2 | . 1 1 1 1 . . . . 2 . Average Corruption 1 | . 1 1 1 1 . . . . 2 . Corruption Purged . | . . . . . . . . . . . Corruption Blocked . | . . . . . . . . . . . Effects 4 | . . 1 . 2 . . . . 1 . Matter Fused 2 | . . . . 1 . . . . 1 . Data Loss (minor) 1 | . . . . 1 . . . . . . Alerts 1 | . . 1 . . . . . . . . Overload Shots . | . . . . . . . . . . . Overflow Damage 302 | . . . . . 4 . 5 43 . 250 Projectiles 16 | . . . . . . . 5 . . 11 Explosions 286 | . . . . . 4 . . 43 . 239 Melee . | . . . . . . . . . . . Knockbacks 7 | . . . . . . . 3 2 . 2 Impact . | . . . . . . . . . . . Kinetic 7 | . . . . . . . 3 2 . 2 Secondary . | . . . . . . . . . . . Self-Inflicted Damage 164 | 37 . . . . . . 18 . . 109 Shots 5 | 1 . . . . . . 1 . . 3 Rammed . | . . . . . . . . . . . Targets Rammed . | . . . . . . . . . . . Kicked . | . . . . . . . . . . . Crushed . | . . . . . . . . . . . Highest Temperature 580 | 54 36 . . . 238 . 580 474 228 234 Average Temperature 121 | 21 8 . . . 64 . 273 217 116 84 Received Heat Transfer 800 | . 90 . . . 261 . 72 116 . 261 Effects 18 | . . . . . . . 12 6 . . Shutdowns 4 | . . . . . . . 2 2 . . Energy Bleed 1 | . . . . . . . 1 . . . Interference 6 | . . . . . . . 4 2 . . Matter Decay 2 | . . . . . . . 2 . . . Damage (major) 5 | . . . . . . . 3 2 . . Siege Activations . | . . . . . . . . . . . Robots Corrupted . | . . . . . . . . . . . Combat Hostiles . | . . . . . . . . . . . Parts Fried 1 | 1 . . . . . . . . . . Impact Corruptions . | . . . . . . . . . . . Robots Melted . | . . . . . . . . . . . Combat Hostiles . | . . . . . . . . . . . Parts Melted . | . . . . . . . . . . . Heat Transferred 87 | 50 . . . . . . . . . 37 Parts Sabotaged . | . . . . . . . . . . . Parts Stolen . | . . . . . . . . . . . Parts Stripped . | . . . . . . . . . . . Power Chain Reactions 1 | 1 . . . . . . . . . . Alert | -11 -10 -10 -10 -9 -8 -7 -7 -7 -7 -7 ------- Run | Yrd Mat Min Exi Min Mat Fac Low Low Zio Dee Peak Influence 463 | 30 312 88 . 125 463 188 . . . . Initial 188 | . 19 88 . . 48 188 . . . . Average 176 | 14 138 88 . 26 303 188 . . . . Maximum Alert Level 2 | . 1 . . . 2 . . . . . Low Security (%) 64 | 100 75 100 . 100 16 100 . . . . Level 1 27 | . 24 . . . 59 . . . . . Level 2 8 | . . . . . 24 . . . . . Level 3 . | . . . . . . . . . . . Level 4 . | . . . . . . . . . . . Level 5 . | . . . . . . . . . . . High Security . | . . . . . . . . . . . Max Security . | . . . . . . . . . . . Squads Dispatched 7 | . 3 . . . 2 1 . 1 . . Investigation 1 | . 1 . . . . . . . . . Extermination 1 | . . . . . . 1 . . . . Reinforcement 4 | . 2 . . . 2 . . . . . Assault 1 | . . . . . . . . 1 . . Garrison . | . . . . . . . . . . . Intercept . | . . . . . . . . . . . Searches Triggered . | . . . . . . . . . . . Construction Impeded . | . . . . . . . . . . . Haulers Reinforced . | . . . . . . . . . . . Active Scanning Responses . | . . . . . . . . . . . Cargo Convoy Interrupts . | . . . . . . . . . . . Stealth | -11 -10 -10 -10 -9 -8 -7 -7 -7 -7 -7 --------- Run | Yrd Mat Min Exi Min Mat Fac Low Low Zio Dee Distress Signals 4 | . 1 . . . 3 . . . . . Communications Jammed . | . . . . . . . . . . . Distress Signals . | . . . . . . . . . . . Times Spotted 113 | . 16 . . 4 27 . 7 10 . 49 Peak Tracking Total 36 | . 3 . . 3 8 1 4 7 . 36 Tactical Retreats 3 | . 1 . . . 2 . . . . . Traps | -11 -10 -10 -10 -9 -8 -7 -7 -7 -7 -7 ------- Run | Yrd Mat Min Exi Min Mat Fac Low Low Zio Dee Traps Triggered 2 | . 2 . . . . . . . . . Indirectly . | . . . . . . . . . . . Trap Hack Attempts . | . . . . . . . . . . . Triggered . | . . . . . . . . . . . Disarmed . | . . . . . . . . . . . Reprogrammed . | . . . . . . . . . . . Reused . | . . . . . . . . . . . Traps Extracted . | . . . . . . . . . . . Installed 1 | . . . . 1 . . . . . . Triggered . | . . . . . . . . . . . Most Traps Carried 3 | . . . . 3 3 . . . . . Machines | -11 -10 -10 -10 -9 -8 -7 -7 -7 -7 -7 ---------- Run | Yrd Mat Min Exi Min Mat Fac Low Low Zio Dee Machines Disabled 7 | . . . . 1 1 . . 1 . 4 Max in Single Turn 1 | . . . . 1 1 . . 1 . 1 Machines Repaired . | . . . . . . . . . . . Machines Dismantled . | . . . . . . . . . . . Machines Sabotaged . | . . . . . . . . . . . Overloaded Fab Kills . | . . . . . . . . . . . Hacking | -11 -10 -10 -10 -9 -8 -7 -7 -7 -7 -7 --------- Run | Yrd Mat Min Exi Min Mat Fac Low Low Zio Dee Machines Accessed 10 | . 6 . 1 . 2 1 . . . . Terminals 6 | . 5 . . . 1 . . . . . Fabricators . | . . . . . . . . . . . Repair Stations . | . . . . . . . . . . . Recycling Units 2 | . 1 . . . 1 . . . . . Scanalyzers . | . . . . . . . . . . . Garrison Access 1 | . . . . . . 1 . . . . Total Hacks 34 | . 20 . 1 . 12 1 . . . . Successful 15 | . 8 . 1 . 6 . . . . . Failed 19 | . 12 . . . 6 1 . . . . Catastrophic 7 | . 4 . . . 2 1 . . . . Database Lockouts . | . . . . . . . . . . . Manual 25 | . 11 . . . 9 . . . 5 . Terminals 25 | . 17 . . . 8 . . . . . Fabricators . | . . . . . . . . . . . Repair Stations . | . . . . . . . . . . . Recycling Units 7 | . 3 . . . 4 . . . . . Scanalyzers . | . . . . . . . . . . . Garrison Access 1 | . . . . . . 1 . . . . Terminal Hacks 6 | . 4 . 1 . 1 . . . . . Record 1 | . . . 1 . . . . . . . Prototype ID Bank 2 | . 2 . . . . . . . . . Alert Level 1 | . 1 . . . . . . . . . Locate Traps 1 | . . . . . 1 . . . . . Zone Layout 1 | . 1 . . . . . . . . . Fabricator Hacks . | . . . . . . . . . . . Repair Station Hacks . | . . . . . . . . . . . Recycling Unit Hacks 2 | . 1 . . . 1 . . . . . Retrieve Components 2 | . 1 . . . 1 . . . . . Scanalyzer . | . . . . . . . . . . . Garrison Access Hacks . | . . . . . . . . . . . Unauthorized Hacks 7 | . 3 . . . 4 . . . . . Terminals 4 | . 2 . . . 2 . . . . . Botnet 3 | . 2 . . . 1 . . . . . Operators 1 | . . . . . 1 . . . . . Fabricators . | . . . . . . . . . . . Repair Stations . | . . . . . . . . . . . Recycling Units 3 | . 1 . . . 2 . . . . . Monitor 1 | . . . . . 1 . . . . . Reject 1 | . 1 . . . . . . . . . Recyclers 1 | . . . . . 1 . . . . . Scanalyzers . | . . . . . . . . . . . Garrison Access . | . . . . . . . . . . . Data Cores Recovered . | . . . . . . . . . . . Used . | . . . . . . . . . . . Hacking Detections 8 | . 6 . . . 1 1 . . . . Full Trace Events 1 | . 1 . . . . . . . . . Feedback Events . | . . . . . . . . . . . Feedback Blocked . | . . . . . . . . . . . Robot Schematics Acquired . | . . . . . . . . . . . Robots Built . | . . . . . . . . . . . Authchips . | . . . . . . . . . . . Time . | . . . . . . . . . . . Total Robot Build Rating . | . . . . . . . . . . . Part Schematics Acquired . | . . . . . . . . . . . Parts Built . | . . . . . . . . . . . Authchips . | . . . . . . . . . . . Time . | . . . . . . . . . . . Total Part Build Rating . | . . . . . . . . . . . Parts Repaired . | . . . . . . . . . . . Time . | . . . . . . . . . . . Parts Recycled . | . . . . . . . . . . . Recycled Matter . | . . . . . . . . . . . Retrieved Matter . | . . . . . . . . . . . Retrieved Components 10 | . 10 . . . . . . . . . Parts Scanalyzed . | . . . . . . . . . . . Part Schematics Acquired . | . . . . . . . . . . . Parts Damaged . | . . . . . . . . . . . Bothacking | -11 -10 -10 -10 -9 -8 -7 -7 -7 -7 -7 ------------ Run | Yrd Mat Min Exi Min Mat Fac Low Low Zio Dee Used RIF Installer . | . . . . . . . . . . . Robots Hacked . | . . . . . . . . . . . Non-combat . | . . . . . . . . . . . Combat . | . . . . . . . . . . . Robot Hacks Applied . | . . . . . . . . . . . Relay Couplers Released . | . . . . . . . . . . . Fabnet Peak Effective % . | . . . . . . . . . . . Robots Rewired 2 | . . . . . . . . 2 . . Allies Hacked . | . . . . . . . . . . . Hacks Repelled . | . . . . . . . . . . . Allies | -11 -10 -10 -10 -9 -8 -7 -7 -7 -7 -7 -------- Run | Yrd Mat Min Exi Min Mat Fac Low Low Zio Dee Total Allies 5 | . . . . . . . . 2 2 1 Largest Group 5 | . . . . . . . . 2 4 5 Highest-Rated Group 359 | . . . . . . . . 48 240 359 Highest-Rated Ally 119 | . . . . . . . . 32 96 119 Total Orders . | . . . . . . . . . . . Ally Attacks 93 | . . . . . . . . . . 93 Total Damage 4368 | . . . . . . . . . . 4368 Kills 14 | . . . . . . . . . . 14 Allies Corrupted . | . . . . . . . . . . . Allies Melted . | . . . . . . . . . . . Turrets Deployed 1 | . . . . . . . . . . 1 Intel | -11 -10 -10 -10 -9 -8 -7 -7 -7 -7 -7 ------- Run | Yrd Mat Min Exi Min Mat Fac Low Low Zio Dee Robot Analysis Total . | . . . . . . . . . . . Derelict Logs Recovered 5 | . . . . 1 . . 1 1 2 . Drone Launches . | . . . . . . . . . . . Drone Recoveries . | . . . . . . . . . . . Exploration | -11 -10 -10 -10 -9 -8 -7 -7 -7 -7 -7 ------------- Run | Yrd Mat Min Exi Min Mat Fac Low Low Zio Dee Turns Passed 5326 | 232 634 142 298 182 773 291 484 532 968 790 Spaces Moved 3036 | 104 313 86 186 102 375 186 301 303 622 458 Core 55 | 2 . . . . . . . . . 53 Treads 2981 | 102 313 86 186 102 375 186 301 303 622 405 Legs . | . . . . . . . . . . . Wheels . | . . . . . . . . . . . Hover . | . . . . . . . . . . . Flight . | . . . . . . . . . . . Fastest Speed 50 | 50 160 160 160 160 160 145 145 145 145 50 Average Speed 149 | 157 160 160 160 160 160 145 145 145 145 134 Slowest Speed 160 | 160 160 160 160 160 160 145 145 145 145 145 Overloaded Moves . | . . . . . . . . . . . Propulsion Burnouts . | . . . . . . . . . . . Robots Hopped . | . . . . . . . . . . . Cave-ins Triggered . | . . . . . . . . . . . Exploration Rate (%) 43 | 8 57 30 56 17 40 7 55 43 83 78 Regions Visited 10 Branch Regions 7 Pre-discovered Areas 4 | . . . 1 . . . . . 3 . Known Exits Taken 1 | . . . . . . . 1 . . . Unknown Exits Taken 9 | 1 1 1 1 1 1 1 . 1 1 . Scrap Searched 8 | . . . . . . . 1 4 3 . Spaces Dug 1 | . . . . . . . . . . 1 Terrain Destroyed 145 | 6 . . . 21 13 . 17 77 . 11 Melee 1 | . . . . . . . . . . 1 Projectile 20 | . . . . . . . 6 7 . 7 AOE 124 | 6 . . . 21 13 . 11 70 . 3 Terrain Rammed . | . . . . . . . . . . . Walls Destroyed . | . . . . . . . . . . . Machines Disabled . | . . . . . . . . . . . Actions | -11 -10 -10 -10 -9 -8 -7 -7 -7 -7 -7 --------- Run | Yrd Mat Min Exi Min Mat Fac Low Low Zio Dee Total 3564 | 147 392 91 187 119 472 207 324 357 689 579 Wait 169 | 19 26 6 . 8 14 . 6 8 51 31 Move 3026 | 103 312 85 185 101 374 185 300 302 621 458 Hop . | . . . . . . . . . . . Pick Up 47 | 2 12 . 2 4 16 1 2 1 3 4 Fast Attach 38 | 9 4 . . . 2 5 . 1 6 11 Attach 17 | . . . . . 5 2 . 2 1 7 Detach 14 | 1 . . . . 1 . . . 3 9 Swap 22 | . 2 . . 1 7 5 2 1 . 4 Drop 69 | 2 8 . . 2 19 9 1 2 4 22 Fire 139 | 11 28 . . 2 34 . 13 20 . 31 Melee 2 | . . . . . . . . . . 2 Ram . | . . . . . . . . . . . Kick . | . . . . . . . . . . . Crush . | . . . . . . . . . . . Escape Stasis . | . . . . . . . . . . . Rewire 20 | . . . . . . . . 20 . . Trap 1 | . . . . 1 . . . . . . Miscellaneous . | . . . . . . . . . . . Route ------- -11/Scrapyard -10/Materials (discovered 3 exits: [*Mat x2] / [*Min]) -10/Mines (discovered 2 exits: [*Mat] / *Exi) -10/Exiles -9/Mines -8/Materials -7/Factory -7/Lower Caves -7/Lower Caves (discovered 2 exits: Fac / *Zio) -7/Zion -7/Deep Caves (discovered 1 exit: [*Pro]) History --------- Turn | Location | Event 12 | -11/Scrapyard | Discovered new exit (range 14) 233 | -11/Scrapyard | Entered Materials 309 | -10/Materials | Build established: Mutant 481 | -10/Materials | Discovered new exit (range 8) 667 | -10/Materials | Discovered new exit (range 13) 856 | -10/Materials | Discovered new exit (range 7) 867 | -10/Materials | Entered Mines 941 | -10/Mines | Met a Derelict bent on vengeance 941 | -10/Mines | Discovered new exit (range 7) 1003 | -10/Mines | Deemed a non-threat by the Exiles lab entrance 1003 | -10/Mines | Discovered new exit (range 5) 1009 | -10/Mines | Entered Exiles 1049 | -10/Exiles | Met 8R-AWN 1075 | -10/Exiles | Met EX-HEX 1177 | -10/Exiles | Met EX-BIN 1201 | -10/Exiles | Met EX-DEC 1208 | -10/Exiles | Learned location of Zion (-7) 1293 | -10/Exiles | Discovered new exit (range 10) 1307 | -10/Exiles | Entered Mines 1327 | -9/Mines | Learned Materials emergency access door positions 1387 | -9/Mines | Found a hidden stash of uninstalled traps 1476 | -9/Mines | Discovered new exit (range 9) 1489 | -9/Mines | Entered Materials 1489 | -8/Materials | Evolved 4 slots: Propulsion x1, Utility x1, Weapon x2 1975 | -8/Materials | Build established: Scavenger-Tank 2141 | -8/Materials | Discovered new exit (range 15) 2262 | -8/Materials | Entered Factory 2262 | -7/Factory | Evolved 2 slots: Propulsion x1, Utility x1 2495 | -7/Factory | Discovered new exit (range 14) 2553 | -7/Factory | Entered Lower Caves 2554 | -7/Lower Caves | Build established: Tank 2897 | -7/Lower Caves | Identified exit to Lower Caves 3037 | -7/Lower Caves | Entered another Lower Caves area 3337 | -7/Lower Caves | Attracted the attention of an 0b10 checkpoint 3457 | -7/Lower Caves | Attracted the attention of an 0b10 outpost 3467 | -7/Lower Caves | Discovered new exit (range 11) 3505 | -7/Lower Caves | Destroyed 7 combat bots 3511 | -7/Lower Caves | Identified exit to Factory 3569 | -7/Lower Caves | Entered Zion 3569 | -7/Zion | Accompanied by 2 allies 3684 | -7/Zion | Found Prototype Processor 3684 | -7/Zion | Identified Spectral Analyzer 3693 | -7/Zion | Found Prototype Processor 3693 | -7/Zion | Identified Exp. Melee Analysis Suite 3702 | -7/Zion | Found Prototype Hackware 3702 | -7/Zion | Identified Exp. Hacking Suite 3711 | -7/Zion | Found Exp. Melee Analysis Suite 3748 | -7/Zion | System corruption cleaned by Quarantine Array 3910 | -7/Zion | Learned location of Armory (-3) 4055 | -7/Zion | Learned 4 Factory zone layouts 4121 | -7/Zion | Found Prototype Device 4121 | -7/Zion | Identified Phasing AFG 4173 | -7/Zion | Given the Hacking Drone Bay 4202 | -7/Zion | Given A8's code to call for help 4340 | -7/Zion | Acquired unknown access codes intercepted by a Zionite 4395 | -7/Zion | Met Imprinter 4429 | -7/Zion | Build established: Gunner 4492 | -7/Zion | Opened final containment barrier to the Deep Caves 4497 | -7/Zion | Enhanced Grunt warped into view, answering call for help 4499 | -7/Zion | Enhanced Grunt warped into view, answering call for help 4519 | -7/Zion | Discovered new exit (range 3) 4519 | -7/Zion | Saw the warning signs outside the Deep Caves entrance 4537 | -7/Zion | Entered Deep Caves 4537 | -7/Deep Caves | Accompanied by 4 allies 4539 | -7/Deep Caves | Met 5H-AD0 4605 | -7/Deep Caves | Z-Facility disabled 4638 | -7/Deep Caves | Attacked by Z-Imprinter 4647 | -7/Deep Caves | Allies destroyed Z-Imprinter 4677 | -7/Deep Caves | Found Prototype Device 4677 | -7/Deep Caves | Identified Zio. Metafield Generator 4680 | -7/Deep Caves | Found Prototype Protection 4680 | -7/Deep Caves | Identified Zio. Weapon Casing 4834 | -7/Deep Caves | Found Zio. Weapon Casing 4837 | -7/Deep Caves | Found Zio. Weapon Casing 4975 | -7/Deep Caves | Build established: Scavenger-Tank 5133 | -7/Deep Caves | Discovered new exit (range 9) 5225 | -7/Deep Caves | Spotted AG-83068 5241 | -7/Deep Caves | Exposed GOLEM chamber 5242 | -7/Deep Caves | Triggered Deep Caves wall 5271 | -7/Deep Caves | Spotted AS-18134 5276 | -7/Deep Caves | Destroyed AS-18134 5277 | -7/Deep Caves | Lost 3 allies 5278 | -7/Deep Caves | Spotted AG-83438 5292 | -7/Deep Caves | Core integrity fell below 50% 5294 | -7/Deep Caves | Destroyed 39 combat bots 5297 | -7/Deep Caves | Core integrity fell below 20% 5300 | -7/Deep Caves | DAS Turret deployed 5320 | -7/Deep Caves | Lost 10 parts (1p4n3u2w) 5327 | -7/Deep Caves | Destroyed by AG-83068 with Assembled Focal Cannon Last Messages --------------- 05285_ Dropped Lrg. Matter Pod. 05286_ Dropped Lrg. Storage Unit. 05287_ Dropped Hvy. Assault Rifle. 05288_ HV Slug penetrates AG-83068. 05288_ Acquired Phasing AFG. 05289_ Exp. Heat Sink destroyed. 05289_ Dropped Adv. Assault Cannon. 05290_ Acquired Zio. Light DM Reactor. 05291_ HV Slug penetrates AG-83068. 05294_ HK-XKY(M) destroyed. 05295_ Acquired 58 matter. 05300_ DAS Turret deployed. 05300_ AG-83438 knocked back. 05302_ 6K-GWV(l) destroyed. 05303_ AG-83438 knocked back. 05307_ as-62668 released from Mobile Assembly Unit. 05307_ DAS Turret destroyed. 05323_ as-71411 destroyed. 05326_ Acquired 5 matter. Map ----- +----------------------------------------------------+ | | | | | | | | | | | | | | | | | | | | | | | | | | | | | | | | | | | | | | | | | ????????""####;;###########????????????? | | ????????" #????????????? | | ?????????" ########"#???????????? | | ????????""" #???##???????????? | | ????????" ######????????????????? | | ????????" @ # # #?????????????????? | | ????????"" # # #?????????????????# | | ????????" # #?##??????????????# | | ????????"" # #? #??????????????# | | ????????" #? #??????????????# | | ????????""" G ## #??????????????# | | ????????" ;# #?????????????# | | ????????" # #####?????????# | | ????????" #?????????# | | ????????# ###?????????## | | ????????"" % ##????????????? | | ?????????" ###?????????????? | | ?????????" #?????????????? | | ?????????" #####????????????? | | ?????????" #?# #????????????? | | ????????# ### ####????????## | | ??????" # #?????#### | | ????? [ % ! ##???????# | | ??? [% * ###?????#< | | ??" #?????##### | | ??" = = "##????????## | | ??" ##?????????# | | ??" #????????## | | ??" = ##?????### | | ??""""" "#????## | +----------------------------------------------------+ Best States ------------- Heat Dissipation 86 Energy Generation 27 Energy Capacity 315 Matter Stores 300 Matter Capacity 450 Sight Range 16 Terrain Scan Range 16 Terrain Scan Density 10 Armor Coverage 600 Weapon Shielding 100 Evasion (%) 50 Targeting Accuracy 12 Recoil Reduction 4 Kinecelleration 30 Offensive Hacking 16 Item Schematics ----------------- None Robot Schematics ------------------ None Fabricated ------------ Nothing Alien Tech Used ----------------- None Achievements -------------- None Challenges ------------ None Game ------ Seed HardlightZioniteCutter Manual? 0 Play Time 00:39:53 Cumulative 319.0 hours Start 2024.08.29 @ 12:45:59 End 2024.08.29 @ 13:28:52 Sessions 1 Manual Loads 0 Difficulty Rogue Special Mode None Game No. 319 Rogue 314 Adventurer 5 Explorer 0 Win Type - Total 5 Types 4/0/0/1/0/0/0/0/0 Lore% 71 Gallery% 81 Achievement% 66 Wizard Run 0 Options --------- Layout 1 ASCII 0 Keyboard 0 Movement Arrows Keybinds 0 Fullscreen 1 Font 24/Terminus Map View 50x35 Zoom Use 0% Tactical HUD 1 Map Filters NONE Filters NONE Steam 1 RUN: 75a09c96-f096-42e3-b231-d7e785a9df7c